[Event "LJ Slovak Open 2022"]
[Site "Liptovsky Jan"]
[Date "2022.06.26"]
[Round "7.53"]
[White "Magdova, Lucia"]
[Black "Magda, Juraj"]
[Result "1/2-1/2"]
[ECO "A00"]
[WhiteElo "1055"]
[BlackElo "1301"]
[Annotator "NA"]
[PlyCount "80"]
[EventDate "2022.06.23"]
[EventType "swiss"]
[EventCountry "SVK"]
[SourceTitle "playchess.com"]
[Source "ChessBase"]
[SourceQuality "1"]
[TimeControl "3600+30"]

1. h3 {[%emt 0:00:20]} h6 {[%emt 0:00:29]} 2. h4 {[%emt 0:00:30]} h5 {[%emt 0:00:30]} 3. g3 {[%emt 0:00:17]} g6 {[%emt 0:00:08]} 4. g4 {[%emt 0:00:08]} g5 {[%emt 0:00:24]} 5. f3 {[%emt 0:00:30]} f6 {[%emt 0:00:30]} 6. f4 {[%emt 0:00:13]} f5 {[%emt 0:00:12]} 7. e3 {[%emt 0:00:07]} e6 {[%emt 0:00:07]} 8. e4 {[%emt 0:00:06]} e5 {[%emt 0:00:44]} 9. d3 {[%emt 0:00:31]} d6 {[%emt 0:00:30]} 10. d4 {[%emt 0:00:10]} d5 {[%emt 0:00:15]} 11. c3 {[%emt 0:00:09]} c6 {[%emt 0:00:08]} 12. c4 {[%emt 0:00:16]} c5 {[%emt 0:00:37]} 13. b3 {[%emt 0:00:30]} b6 {[%emt 0:00:30]} 14. b4 {[%emt 0:00:19]} b5 {[%emt 0:00:16]} 15. a3 {[%emt 0:00:18]} a6 {[%emt 0:00:07]} 16. a4 {[%emt 0:00:09]} a5 {[%emt 0:00:09]} 17. Kf2 {[%emt 0:00:10]} bxa4 {[%emt 0:03:02]} 18. bxa5 {[%emt 0:00:23]} Ke7 {[%emt 0:04:31]} 19. Kg2 {[%emt 0:01:35]} dxc4 {[%emt 0:01:05]} 20. gxh5 {[%emt 0:00:48]} gxh4 {[%emt 0:01:48]} 21. fxe5 {[%emt 0:05:11]} Be6 {[%emt 0:05:21]} 22. exf5 {[%emt 0:02:37]} Bxf5 {[%emt 0:01:49]} 23. Bxc4 {[%emt 0:01:53]} Nh6 {[%emt 0:01:56]} 24. Qxa4 {[%emt 0:01:12]} Qxa5 {[%emt 0:04:33]} 25. Qxa5 {[%emt 0:00:40]} Rxa5 {[%emt 0:00:19]} 26. Ra2 {[%emt 0:03:28]} Rxa2+ {[%emt 0:00:28]} 27. Bxa2 {[%emt 0:00:09]} Be4+ {[%emt 0:03:30]} 28. Nf3 {[%emt 0:00:23]} Bxf3+ {[%emt 0:00:52]} 29. Kxf3 {[%emt 0:00:15]} Nc6 {[%emt 0:01:51]} 30. Bxh6 {[%emt 0:02:35]} Bxh6 {[%emt 0:01:20]} 31. dxc5 {[%emt 0:01:24]} Nxe5+ {[%emt 0:00:40]} 32. Ke4 {[%emt 0:00:35]} Kf6 {[%emt 0:00:57]} 33. Rxh4 {[%emt 0:01:20]} Bf8 {[%emt 0:02:09]} 34. Kd5 {[%emt 0:02:30]} Nf3 {[%emt 0:04:15]} 35. Rh3 {[%emt 0:00:33]} Ng5 {[%emt 0:03:32]} 36. Rh2 {[%emt 0:01:52]} Nf3 {[%emt 0:02:06]} 37. Rh3 {[%emt 0:01:12]} Ng5 {[%emt 0:01:26]} 38. Rh2 {[%emt 0:00:30]} Nf3 {[%emt 0:00:36]} 39. Rh3 {[%emt 0:00:13]} Ng5 {[%emt 0:00:12]} 40. Rh2 {[%emt 0:00:17]} Nf3 {[%emt 0:00:08]} 1/2-1/2

[Event "LJ Slovak Open 2022"]
[Site "Liptovsky Jan"]
[Date "2022.06.26"]
[Round "7.55"]
[White "Moravcik Alex"]
[Black "Szaszak, Matej"]
[Result "1-0"]
[ECO "B13"]
[WhiteElo "1000"]
[BlackElo "1235"]
[Annotator "NA RC"]
[PlyCount "89"]
[EventDate "2022.06.23"]
[EventType "swiss"]
[EventCountry "SVK"]
[SourceTitle "playchess.com"]
[Source "ChessBase"]
[SourceQuality "1"]
[TimeControl "3600+30"]

1. d4 {[%emt 0:00:04]} d5 {[%emt 0:00:03]} 2. c4 {[%emt 0:00:09]} e6 {[%emt 0:00:08]} 3. Nf3 {[%emt 0:00:19]} c5 {[%emt 0:00:32]} 4. e3 {[%emt 0:00:37]} cxd4 {[%emt 0:00:30]} 5. exd4 {[%emt 0:00:30]} Nf6 {[%emt 0:00:49]} 6. Bg5 {[%emt 0:00:38]} Be7 {[%emt 0:00:21]} 7. Bxf6 {[%emt 0:00:24]} Bxf6 {[%emt 0:00:14]} 8. Be2 {[%emt 0:00:25]} Qb6 {[%emt 0:00:15]} 9. Qd2 {[%emt 0:00:30]} O-O {[%emt 0:00:24]} 10. Nc3 {[%emt 0:00:15]} Nc6 {[%emt 0:01:24]} 11. Rd1 {[%emt 0:01:19]} Qc7 {[%emt 0:01:21]} 12. cxd5 {[%emt 0:00:34]} exd5 {[%emt 0:02:15]} 13. Nxd5 {[%emt 0:00:25]} Qd8 {[%emt 0:00:45]} 14. Nxf6+ {[%emt 0:01:03]} Qxf6 {[%emt 0:00:20]} 15. O-O {[%emt 0:00:48]} Be6 {[%emt 0:00:40]} 16. Bd3 {[%emt 0:00:45]} Kh8 {[%emt 0:01:18]} 17. Qe3 {[%emt 0:01:32]} Rfe8 {[%emt 0:01:23]} 18. Rde1 {[%emt 0:00:48]} Bd7 {[%emt 0:01:10]} 19. Be4 {[%emt 0:01:06]} Bf5 {[%emt 0:00:29]} 20. Qd3 {[%emt 0:00:25]} Nb4 {[%emt 0:00:40]} 21. Qb1 {[%emt 0:00:55]} Bxe4 {[%emt 0:00:47]} 22. Rxe4 {[%emt 0:00:26]} Rxe4 {[%emt 0:00:06]} 23. Qxe4 {[%emt 0:00:20]} Nxa2 {[%emt 0:01:30]} 24. Re1 {[%emt 0:07:08]} h6 {[%emt 0:00:20]} 25. Qxb7 {[%emt 0:00:21]} Qd8 {[%emt 0:00:42]} 26. Qb3 {[%emt 0:00:37]} Qa5 {[%emt 0:00:22]} 27. Qxf7 {[%emt 0:00:28]} Qa4 {[%emt 0:00:36]} 28. Ne5 {[%emt 0:00:55]} Qb4 {[%emt 0:02:16]} 29. Kf1 {[%emt 0:01:02]} Qb5+ {[%emt 0:01:41]} 30. Kg1 {[%emt 0:00:22]} Qb8 {[%emt 0:01:56]} 31. Qxa2 {[%emt 0:01:35]} Qe8 {[%emt 0:00:56]} 32. Nf7+ {[%emt 0:00:23]} Kh7 {[%emt 0:00:23]} 33. Rxe8 {[%emt 0:00:12]} Rxe8 {[%emt 0:00:11]} 34. h3 {[%emt 0:00:11]} Re1+ {[%emt 0:01:29]} 35. Kh2 {[%emt 0:00:13]} Rd1 {[%emt 0:00:17]} 36. Qxa7 {[%emt 0:00:14]} Rd2 {[%emt 0:00:24]} 37. Qb7 {[%emt 0:00:30]} Rxd4 {[%emt 0:00:13]} 38. b4 {[%emt 0:00:26]} Rf4 {[%emt 0:00:16]} 39. b5 {[%emt 0:00:27]} Rxf2 {[%emt 0:00:41]} 40. b6 {[%emt 0:00:08]} Rb2 {[%emt 0:00:09]} 41. Qc7 {[%emt 0:00:15]} Rxb6 {[%emt 0:00:26]} 42. Qxb6 {[%emt 0:00:15]} Kg8 {[%emt 0:00:04]} 43. Nxh6+ {[%emt 0:00:37]} gxh6 {[%emt 0:00:16]} 44. Qb7 {[%emt 0:00:22]} h5 {[%emt 0:00:18]} 45. Kg3 {[%emt 0:00:10]} 1-0